[Event "FRA-ch Teams Top 16-Haute 2022"]
[Site "Chartres"]
[Date "2022.06.19"]
[Round "11.19"]
[White "Maghsoodloo, Parham"]
[Black "Fedorchuk, Sergey A."]
[Result "1/2-1/2"]
[ECO "E13"]
[WhiteElo "2699"]
[BlackElo "2606"]
[Annotator "TA"]
[PlyCount "71"]
[EventDate "2022.06.16"]
[EventType "team-tourn"]
[EventCountry "FRA"]
[SourceTitle "playchess.com"]
[Source "ChessBase"]
[SourceQuality "1"]
[TimeControl "40/5400+30:1800+30"]

{[%evp 20,71,0,0,0,2,10,-15,0,-16,-11,-19,-8,-21,-7,-11,-19,-31,-32,-39,-33,-44,-38,-35,-25,-30,0,-43,0,-29,0,-143,-146,-141,-131,-124,-160,-139,-145,-132,-112,-103,-38,-218,-141,-152,-99,-121,0,-162,0,-103,0,-117]} 1. d4 {[%emt 0:00:02]} Nf6 {[%emt 0:00:13]} 2. c4 {[%emt 0:00:05]} e6 {[%emt 0:00:11]} 3. Nc3 {[%emt 0:00:06]} Bb4 {[%emt 0:00:14]} 4. Nf3 {[%emt 0:00:11]} b6 {[%emt 0:01:15]} 5. Bg5 {[%emt 0:03:38][%cal Bc1g5,Bg5h4,Bh4g3][%mdl 32]} h6 {[%emt 0:03:46]} 6. Bh4 {[%emt 0:00:05]} g5 {[%emt 0:02:52]} 7. Bg3 {[%emt 0:00:07]} Ne4 {[%emt 0:00:07]} 8. Qc2 {[%emt 0:00:04]} Bb7 {[%emt 0:00:41]} 9. e3 {[%emt 0:00:08]} Bxc3+ {[%emt 0:09:45]} 10. bxc3 {[%emt 0:02:09]} Nxg3 {[%emt 0:00:35]} 11. hxg3 {[%emt 0:03:18]} Qe7 {[%emt 0:01:23] E13: Queen's Indian/Nimzo-Indian hybrid: 4 Nc3 Bb7 5 Bg5 h6 6 Bh4 Bb4.} 12. a4 {[%emt 0:06:48]} Nc6 {[%emt 0:03:35] [#]} 13. c5 $146 {[%emt 0:02:16]} ({Predecessor:} 13. Bd3 d6 14. g4 Na5 15. Be4 O-O-O 16. Bxb7+ Kxb7 17. Qe4+ Kb8 18. d5 Rde8 19. Nd4 {½-½ (41) Akobian,V (2600)-Stein,A (2415) San Diego 2006}) 13... Na5 {[%emt 0:12:26]} 14. Rb1 {[%emt 0:11:56]} d6 {[%emt 0:07:45]} 15. Bb5+ {[%emt 0:08:17]} Kf8 {[%emt 0:01:59]} 16. cxd6 {[%emt 0:00:48]} cxd6 {[%emt 0:00:16]} 17. e4 {[%emt 0:01:02]} Rc8 {[%emt 0:01:42]} 18. Bd3 {[%emt 0:03:38]} Kg7 {[%emt 0:04:41]} 19. O-O {[%emt 0:00:07]} Rc7 {[%emt 0:00:50]} 20. Qb2 {[%emt 0:09:26]} Rhc8 {[%emt 0:07:36]} 21. Rbc1 {[%emt 0:01:28]} Nc4 {[%emt 0:00:47]} 22. Qe2 {[%emt 0:07:58]} Na5 {[%emt 0:04:09] Hoping for ...Nb3.} 23. Qb2 {[%emt 0:20:05] Against Nb3} Nc4 {[%emt 0:00:22]} 24. Qe2 {[%emt 0:05:21]} Na5 {[%emt 0:00:28]} 25. Nh2 {[%emt 0:00:05]} (25. Qb2 $1 $11) 25... Nb3 $36 {[%emt 0:03:15][%mdl 2048] Keeping White busy.} ({Stronger than} 25... Rxc3 26. Rxc3 Rxc3 27. f4 $17) 26. Rcd1 {[%emt 0:02:35]} Rxc3 {[%emt 0:00:46]} 27. Bb1 {[%emt 0:02:31]} e5 {[%emt 0:13:36]} 28. dxe5 {[%emt 0:00:12]} dxe5 {[%emt 0:00:05]} 29. Qh5 {[%emt 0:00:07]} Nd4 {[%emt 0:00:07]} 30. Ng4 {[%emt 0:00:05] [#]} R8c6 {[%emt 0:00:29]} (30... Rh8 $1 $17 {And now ...Ba6 would win.} 31. Ne3 Rc5) 31. Rfe1 $2 {[%emt 0:04:12]} (31. Ba2 $15) 31... Rg6 {[%emt 0:02:06]} 32. Ne3 {[%emt 0:05:42]} Rf6 {[%emt 0:00:31]} (32... Bc6 $142 33. Nd5 Qc5 34. Nxc3 Qxc3) 33. Ng4 {[%emt 0:00:05]} Rg6 {[%emt 0:03:30]} 34. Ne3 $1 {[%emt 0:01:29]} Rf6 {[%emt 0:00:12]} ({Black should try} 34... Bc6 $19 35. Nd5 Qc5 36. Nxc3 Qxc3) 35. Ng4 $1 {[%emt 0:00:12]} Rg6 {[%emt 0:00:09]} 36. Ne3 $1 {[%emt 0:02:12] Weighted Error Value: White=0.22 (precise) /Black=0.29 (precise)} 1/2-1/2

[Event "FRA-ch Teams Top 16-Haute 2022"]
[Site "Chartres"]
[Date "2022.06.19"]
[Round "11.20"]
[White "Grandelius, Nils"]
[Black "Tregubov, Pavel V."]
[Result "1/2-1/2"]
[ECO "C42"]
[WhiteElo "2635"]
[BlackElo "2541"]
[Annotator "TA"]
[PlyCount "88"]
[EventDate "2022.06.16"]
[EventType "team-tourn"]
[EventCountry "FRA"]
[SourceTitle "playchess.com"]
[Source "ChessBase"]
[SourceQuality "1"]
[TimeControl "40/5400+30:1800+30"]

{[%evp 13,88,27,41,29,33,17,23,28,45,43,37,47,32,33,68,53,63,63,48,54,52,23,56,0,0,0,0,0,16,20,19,18,14,16,53,42,105,103,100,31,39,8,64,39,108,0,0,0,8,8,5,8,16,0,0,0,0,-14,0,-17,0,-12,0,0,0,0,0,0,0,0,0,0,0,0,0,0,35]} 1. e4 {[%emt 0:00:49]} e5 {[%emt 0:00:05]} 2. Nf3 {[%emt 0:00:49]} Nf6 {[%emt 0:00:07]} 3. Nxe5 {[%emt 0:00:52]} d6 {[%emt 0:00:08]} 4. Nf3 {[%emt 0:00:04]} Nxe4 {[%emt 0:00:06]} 5. Nc3 {[%emt 0:00:04]} Nf6 {[%emt 0:00:35]} 6. d4 {[%emt 0:00:40]} Be7 {[%emt 0:00:12]} 7. Bd3 {[%emt 0:01:20]} O-O {[%emt 0:00:12]} 8. O-O {[%emt 0:00:27] C42: Petroff Defence: 3 Nxe5 and unusual White 3rd moves.} Bg4 {[%emt 0:00:20][%cal Bc8g4,Bg4h5,Bh5g6][%mdl 32]} 9. h3 {[%emt 0:01:11]} Bh5 {[%emt 0:00:08]} 10. Re1 {[%emt 0:00:41] White has an edge.} Re8 {[%emt 0:00:38]} 11. g4 {[%emt 0:01:33][%cal Bg2g4,Bg4g5][%mdl 32]} Bg6 {[%emt 0:00:08]} 12. g5 {[%emt 0:00:04]} Nfd7 {[%emt 0:01:17]} 13. Bf1 {[%emt 0:01:50] [#]} c5 $146 {[%emt 0:01:50]} ({Predecessor:} 13... Nb6 14. Nh4 d5 15. Nxg6 hxg6 16. Bf4 Nc6 17. Qd3 Rc8 18. a3 Nc4 19. b4 Nd6 {1-0 (31) Muniz Pardino,A (2260)-Nemec,Z (2317) LSS email 2018}) 14. dxc5 {[%emt 0:12:16]} dxc5 {[%emt 0:04:34]} 15. Nh4 {[%emt 0:01:53]} Nc6 {[%emt 0:00:53]} 16. Nxg6 {[%emt 0:05:27]} hxg6 {[%emt 0:00:07]} 17. Bg2 {[%emt 0:09:44]} Nd4 {[%emt 0:14:45]} 18. Nd5 {[%emt 0:18:42]} (18. Bf4 $14) 18... Bd6 $11 {[%emt 0:02:33] ...Rxe1+ is the strong threat.} 19. Rxe8+ {[%emt 0:00:51]} Qxe8 {[%emt 0:00:05]} 20. c3 {[%emt 0:05:52]} Ne2+ {[%emt 0:16:52] Pair of Knights!} 21. Kf1 {[%emt 0:00:40]} Nxc1 {[%emt 0:00:08]} 22. Rxc1 {[%emt 0:00:05]} Nf8 {[%emt 0:03:46]} 23. h4 {[%emt 0:05:20]} Ne6 {[%emt 0:03:00]} 24. Qb3 {[%emt 0:12:56]} b5 {[%emt 0:23:41]} (24... Qd7 $14) 25. Re1 $16 {[%emt 0:00:47][%cal Oh4h5] Strongly threatening h5!} Rd8 {[%emt 0:00:32] [#]} 26. Bh3 {[%emt 0:01:48] White is more active.} ({White should play} 26. h5 $1 $16 {[%cal Rh5g6] Threatens to win with hxg6.} Qd7 27. hxg6 Nxg5 28. Qc2) 26... c4 $14 {[%emt 0:07:20]} 27. Qd1 {[%emt 0:07:04] Black must now prevent h5.} (27. Qc2 $5 {[%cal Rh4h5]}) 27... Qc6 {[%emt 0:10:45]} ({Better is} 27... Bc5 $11) 28. Qf3 {[%emt 0:01:47]} Qc5 {[%emt 0:01:32]} (28... Qd7 $14) 29. Rxe6 {[%emt 0:05:17]} (29. Bxe6 $16 fxe6 30. Rxe6) 29... fxe6 $11 {[%emt 0:00:31] The position is equal.} 30. Bxe6+ {[%emt 0:00:02]} Kh8 {[%emt 0:02:52]} 31. Bf7 {[%emt 0:00:39]} Bb8 $1 {[%emt 0:02:40]} (31... Rf8 $2 32. h5 Be7 {[#]} 33. Nf4 $1 $18) 32. h5 {[%emt 0:03:15]} Qd6 {[%emt 0:00:06]} 33. hxg6 {[%emt 0:00:57][%cal Rf3h3]} Qh2 {[%emt 0:00:07] Prevents Qh3+.} 34. Qg4 {[%emt 0:01:05]} a5 {[%emt 0:01:22]} 35. Qg2 {[%emt 0:00:34]} Qh4 {[%emt 0:01:02][%mdl 1024] Black has compensation.} 36. Ke2 {[%emt 0:00:18]} b4 {[%emt 0:01:56]} 37. f4 {[%emt 0:00:36]} Ba7 {[%emt 0:00:54]} 38. Kd1 {[%emt 0:00:22]} b3 {[%emt 0:00:50]} 39. a4 {[%emt 0:00:14]} Be3 {[%emt 0:00:34]} 40. Ke2 {[%emt 0:00:38]} Bc1 {[%emt 0:00:12]} 41. Kf3 {[%emt 0:08:51]} Rxd5 {[%emt 0:06:46][%mdl 64] Remove Defender} 42. Bxd5 {[%emt 0:00:16]} Qxf4+ {[%emt 0:00:06]} 43. Ke2 {[%emt 0:00:02] Intending Qh1+ and mate.} Qd2+ {[%emt 0:00:29]} 44. Kf1 {[%emt 0:00:58][%cal Rg2h3] Dancing on a razor blade.} Qxg2+ {[%emt 0:01:33] Weighted Error Value: White=0.12 (very precise) /Black=0.12 (very precise)} 1/2-1/2

[Event "FRA-ch Teams Top 16-Haute 2022"]
[Site "Chartres"]
[Date "2022.06.19"]
[Round "11.21"]
[White "Libiszewski, Fabien"]
[Black "Velten, Paul"]
[Result "1/2-1/2"]
[ECO "C54"]
[WhiteElo "2514"]
[BlackElo "2492"]
[Annotator "TA"]
[PlyCount "106"]
[EventDate "2022.06.16"]
[EventType "team-tourn"]
[EventCountry "FRA"]
[SourceTitle "playchess.com"]
[Source "ChessBase"]
[SourceQuality "1"]
[TimeControl "40/5400+30:1800+30"]

{[%evp 15,106,0,5,5,5,5,6,0,6,6,6,0,-6,-1,-5,-13,0,0,0,0,0,-2,0,0,0,-16,-2,-31,0,-23,-18,-8,0,-6,9,-20,-17,-22,-18,-15,-14,-20,-6,-8,-18,-21,-7,-8,-7,-8,10,-20,-8,-20,-8,-8,-10,-33,-13,-17,-16,-19,0,0,0,0,0,-8,0,-14,0,0,0,-8,-8,-6,0,-16,-16,-16,-16,-16,-16,-16,-16,-24,0,0,0,0,0,0,0]} 1. e4 {[%emt 0:00:05]} e5 {[%emt 0:00:36]} 2. Nf3 {[%emt 0:00:15]} Nc6 {[%emt 0:00:56]} 3. Bc4 {[%emt 0:00:15]} Bc5 {[%emt 0:00:55]} 4. c3 {[%emt 0:00:17]} Nf6 {[%emt 0:00:28]} 5. d4 {[%emt 0:00:19]} exd4 {[%emt 0:00:21]} 6. cxd4 {[%emt 0:00:05]} Bb4+ {[%emt 0:00:08]} 7. Nbd2 $1 {[%emt 0:00:13][%mdl 4] now scores much better than the old 7.Bd2.} d5 {[%emt 0:01:54]} 8. exd5 {[%emt 0:00:22]} Nxd5 {[%emt 0:00:17]} 9. O-O {[%emt 0:00:19] C54: Giuoco Piano: 4 c3 Nf6, main lines with 5 d4 and 5 d3.} O-O {[%emt 0:06:34]} 10. a3 {[%emt 0:00:29]} Bxd2 {[%emt 0:05:36]} 11. Bxd2 {[%emt 0:01:23]} Nb6 {[%emt 0:01:54]} 12. Ba2 {[%emt 0:17:39]} Be6 {[%emt 0:00:24]} 13. Bg5 {[%emt 0:20:34]} Qd7 {[%emt 0:02:53]} 14. Bxe6 {[%emt 0:03:57]} Qxe6 {[%emt 0:00:49] [#]} 15. Re1 $146 {[%emt 0:02:59]} ({Predecessor:} 15. Bf4 Qd7 16. Rc1 Rfe8 17. Bg3 Rad8 18. Rc5 Nd5 19. Qb3 b6 20. Rc2 Na5 21. Qd3 {1-0 (75) Carvaga,R (2044)-Miksovsky,J (1951) ICCF email 2011}) 15... Qd5 {[%emt 0:03:34]} 16. Bf4 {[%emt 0:03:05]} Rac8 {[%emt 0:01:56]} 17. Rc1 {[%emt 0:01:42]} Rfd8 {[%emt 0:00:54]} 18. Rc5 {[%emt 0:11:54]} Qd7 {[%emt 0:02:18]} 19. h3 {[%emt 0:04:27]} f6 {[%emt 0:02:11]} (19... Nxd4 $2 20. Nxd4 h6 21. Be3 $18) 20. Bg3 {[%emt 0:03:29]} Qf7 {[%emt 0:00:24]} 21. Qc2 {[%emt 0:04:18]} Rd7 {[%emt 0:02:10]} 22. Rc1 {[%emt 0:02:34]} Re8 {[%emt 0:02:08]} 23. b4 {[%emt 0:02:02]} Nd5 {[%emt 0:01:16]} 24. b5 {[%emt 0:01:11]} Nd8 {[%emt 0:00:09]} 25. Qa4 {[%emt 0:00:58]} c6 {[%emt 0:01:16]} 26. R5c2 {[%emt 0:01:58]} ({Don't go for} 26. Qxa7 $2 b6 27. Qxd7 Qxd7 $19) 26... cxb5 {[%emt 0:00:57]} 27. Qxa7 {[%emt 0:11:05]} Nc6 {[%emt 0:00:21]} 28. Qc5 {[%emt 0:00:30]} b4 {[%emt 0:00:05]} 29. axb4 {[%emt 0:01:33]} Ndxb4 {[%emt 0:00:44] Pair of Knights!} (29... Ncxb4 $5 30. Rd2 g5 $11) 30. Rd2 {[%emt 0:00:25]} Red8 {[%emt 0:00:44]} 31. Rb1 {[%emt 0:00:48]} Nd5 {[%emt 0:02:55]} 32. Rdb2 {[%emt 0:01:05]} g5 {[%emt 0:01:00]} 33. Rb5 {[%emt 0:03:39]} Rc8 {[%emt 0:00:15]} 34. Qc4 {[%emt 0:00:17]} b6 {[%emt 0:00:26] aiming for ...Na7.} 35. Qd3 {[%emt 0:00:38]} Nce7 {[%emt 0:00:16]} 36. R5b3 {[%emt 0:01:06]} Qg6 {[%emt 0:00:39]} 37. Qb5 {[%emt 0:00:28]} Rcd8 {[%emt 0:03:24]} 38. Re1 {[%emt 0:00:05][%cal Bb1e1,Be1e2,Be2e6][%mdl 32]} Qc2 {[%emt 0:01:49]} 39. Rbb1 {[%emt 0:00:39]} Qg6 {[%emt 0:04:05]} 40. Rbc1 {[%emt 0:00:37]} Qf7 {[%emt 0:01:43]} 41. Qd3 {[%emt 0:07:02]} h6 {[%emt 0:04:13]} 42. Re2 {[%emt 0:03:04]} Qg6 {[%emt 0:05:16]} 43. Qb3 {[%emt 0:01:42]} Nf5 {[%emt 0:03:12]} 44. Re6 {[%emt 0:05:02]} Qf7 {[%emt 0:01:16]} 45. Rce1 {[%emt 0:02:25]} b5 {[%emt 0:01:36]} 46. Qxb5 {[%emt 0:10:00]} Nxg3 {[%emt 0:00:16][%mdl 64] [#] Remove Defender} 47. fxg3 {[%emt 0:00:02]} Nc7 $1 {[%emt 0:00:09][%csl LRb5,LRe6]} 48. Qc6 {[%emt 0:00:55]} Nxe6 {[%emt 0:00:33]} 49. Rxe6 {[%emt 0:00:02]} Kg7 {[%emt 0:00:33] next ...Re7 is good for Black.} 50. Qe4 $1 {[%emt 0:00:02]} Rxd4 {[%emt 0:22:21]} 51. Nxd4 {[%emt 0:00:21] The position is equal.} Rxd4 {[%emt 0:00:04][%mdl 64] [#] Remove Defender} 52. Qxd4 {[%emt 0:00:14] Threatening mate with Qd6.} Qxe6 {[%emt 0:00:06]} 53. Qa7+ {[%emt 0:01:29]} Kg6 {[%emt 0:46:01] An interesting draw.  Weighted Error Value: White=0.05 (flawless) /Black=0.04 (flawless)} 1/2-1/2

[Event "FRA-ch Teams Top 16-Haute 2022"]
[Site "Chartres"]
[Date "2022.06.19"]
[Round "11.22"]
[White "Edouard, Romain"]
[Black "Hamdouchi, Hicham"]
[Result "0-1"]
[ECO "B80"]
[WhiteElo "2575"]
[BlackElo "2536"]
[Annotator "TA"]
[PlyCount "60"]
[EventDate "2022.06.16"]
[EventType "team-tourn"]
[EventCountry "FRA"]
[SourceTitle "playchess.com"]
[Source "ChessBase"]
[SourceQuality "1"]
[TimeControl "40/5400+30:1800+30"]

{[%evp 20,60,0,-7,0,-2,0,-30,-17,-22,15,-20,-20,-43,0,-35,-14,-40,-43,-210,-53,-49,-217,-38,-52,-279,-116,-106,-110,-97,-95,-235,-229,-227,-153,-142,-153,-222,-220,-337,-332,-826,-806]} 1. e4 {[%emt 0:01:46]} c5 {[%emt 0:00:24]} 2. Nf3 {[%emt 0:00:05]} e6 {[%emt 0:00:10]} 3. d4 {[%emt 0:00:10]} cxd4 {[%emt 0:00:09]} 4. Nxd4 {[%emt 0:00:02]} Nf6 {[%emt 0:00:07]} 5. Nc3 {[%emt 0:00:03]} Nc6 {[%emt 0:00:06]} 6. g3 {[%emt 0:00:42]} d6 {[%emt 0:05:17]} 7. Bg2 {[%emt 0:00:21]} Bd7 {[%emt 0:00:18]} 8. Nde2 {[%emt 0:00:14]} a6 {[%emt 0:02:17]} 9. O-O {[%emt 0:00:31]} Be7 {[%emt 0:00:19]} 10. h3 {[%emt 0:00:05]} b5 {[%emt 0:02:56]} 11. a3 {[%emt 0:00:05]} Qc7 {[%emt 0:06:42] B80: Sicilian Scheveningen: 6 g3 and 6 Be3, including English Attack.} 12. g4 {[%emt 0:00:30]} Bc8 {[%emt 0:02:30]} 13. Ng3 {[%emt 0:00:33] [#]} Bb7 $146 {[%emt 0:00:37] Black has an edge.} ({Predecessor:} 13... O-O 14. f4 Nd7 15. g5 Re8 16. Kh1 Bf8 17. f5 Nce5 18. Nce2 Bb7 19. Nd4 g6 {1-0 (34) Kasimdzhanov,R (2683)-Alekseev,E (2616) Riadh 2017}) 14. f4 {[%emt 0:04:32]} Na5 {[%emt 0:10:24]} 15. Kh1 {[%emt 0:04:18]} (15. g5 {keeps more tension.} Nd7 16. f5 O-O-O 17. Nge2) 15... h6 {[%emt 0:06:59]} 16. Nce2 {[%emt 0:07:40]} h5 {[%emt 0:03:36]} 17. g5 {[%emt 0:03:32]} h4 $1 {[%emt 0:14:55] And now ...Nd7 would win.} 18. gxf6 {[%emt 0:00:09]} Bxf6 {[%emt 0:41:44]} 19. e5 $2 {[%emt 0:26:29]} (19. Nh5 $15 Rxh5 20. f5) 19... hxg3 $2 {[%emt 0:00:00]} ({Black should play} 19... Bxg2+ $1 $19 20. Kxg2 dxe5) 20. exf6 $15 {[%emt 0:00:02]} Rxh3+ $1 {[%emt 0:00:00]} (20... gxf6 21. Kg1 $14) 21. Kg1 {[%emt 0:00:02]} Rh2 {[%emt 0:00:00] Chess con chili.} 22. Rf2 {[%emt 0:03:39]} (22. Rf3 $1 $15 Bxf3 23. Bxf3 gxf6 24. Be3 (24. Nxg3 Rxc2 25. Be4 Nb3 $17)) 22... Qc5 {[%emt 0:00:00]} (22... Bxg2 23. Nxg3 Rh7 24. Qd3 $18 (24. Kxg2 gxf6 25. Qf3 Qc6 $16) (24. Rxg2 Qb6+ 25. Kf1 gxf6 $16)) (22... Rxg2+ $1 $19 23. Rxg2 Qc6) 23. Nd4 $17 {[%emt 0:00:32][%cal Og2b7] [#] aiming for Bxb7!} Rxg2+ $40 {[%emt 0:00:00][%mdl 192] Remove Defender. Black wants a kill.} 24. Rxg2 {[%emt 0:00:03]} Qd5 {[%emt 0:00:00][%csl Gb7][%cal Rd5g2] Black is more active.} 25. Qe2 {[%emt 0:03:13]} Qxd4+ $19 {[%emt 0:00:00]} 26. Be3 {[%emt 0:00:02]} Qxf6 {[%emt 0:00:00]} 27. Rxg3 {[%emt 0:00:07]} O-O-O {[%emt 0:00:00] ...Rh8 is the strong threat.} (27... Qh4 28. Qh2 Qxh2+ 29. Kxh2 $11) 28. Rh3 {[%emt 0:02:00] [#] Inhibits Rh8.} (28. Qh2 $17 Nc4 29. Rd1) 28... Nc4 $1 {[%emt 0:00:00]} ({Stronger than} 28... Qxb2 29. Rd1 Qc3 30. Qf2 $17) 29. Kh2 {[%emt 0:06:27]} (29. Qf2 $142) 29... g5 {[%emt 0:00:00]} ({Avoid the trap} 29... Nxb2 $2 30. Qf2 Nc4 31. Bd4 $19) ({Don't blunder} 29... Qxb2 $2 30. Re1 $19) 30. Rf1 $2 {[%emt 0:01:19]} (30. fxg5 Qe5+ 31. Kg1) 30... Rh8 {[%emt 0:00:00] Weighted Error Value: White=0.72/Black=0.27 (precise)} 0-1

[Event "FRA-ch Teams Top 16-Haute 2022"]
[Site "Chartres"]
[Date "2022.06.19"]
[Round "11.23"]
[White "Gharamian, Tigran"]
[Black "David, Alberto"]
[Result "1/2-1/2"]
[ECO "B47"]
[WhiteElo "2602"]
[BlackElo "2520"]
[Annotator "TA"]
[PlyCount "42"]
[EventDate "2022.06.16"]
[EventType "team-tourn"]
[EventCountry "FRA"]
[SourceTitle "playchess.com"]
[Source "ChessBase"]
[SourceQuality "1"]
[TimeControl "40/5400+30:1800+30"]

{[%evp 9,42,18,37,18,16,14,20,12,35,12,17,0,0,0,0,0,0,0,6,0,17,8,14,0,0,0,0,0,25,25,29,27,29,10,17]} 1. e4 {[%emt 0:01:11]} c5 {[%emt 0:00:09]} 2. Nf3 {[%emt 0:00:06]} e6 {[%emt 0:00:06]} 3. d4 {[%emt 0:00:06]} cxd4 {[%emt 0:00:06]} 4. Nxd4 {[%emt 0:00:06]} Nc6 {[%emt 0:00:24]} 5. Nc3 {[%emt 0:00:07]} Qc7 {[%emt 0:00:36]} 6. g4 {[%emt 0:00:08] B47: Sicilian: Taimanov: 5 Nc3 Qc7 6 f4, 6 g3 and 6 Be2.} a6 {[%emt 0:03:08]} 7. Be3 {[%emt 0:00:41]} Nxd4 {[%emt 0:01:28]} 8. Qxd4 {[%emt 0:00:36]} b5 {[%emt 0:00:14]} 9. O-O-O {[%emt 0:00:34]} Bb7 {[%emt 0:00:37] [#]} 10. Rd2 $146 {[%emt 0:00:29][%cal Oe3f4]} ({Predecessor:} 10. f3 Rc8 11. Qd2 Bb4 12. Bd4 f6 13. g5 h6 14. gxh6 Nxh6 15. a3 Bxa3 16. bxa3 {½-½ (54) Grandelius,N (2672)-Carlsen,M (2865) Wijk aan Zee 2022}) 10... Nf6 {[%emt 0:31:59] [#] ...b4 is the strong threat.} 11. g5 {[%emt 0:04:39]} b4 {[%emt 0:01:19]} 12. gxf6 {[%emt 0:01:21]} bxc3 {[%emt 0:01:10]} 13. fxg7 {[%emt 0:00:05]} cxd2+ {[%emt 0:00:06]} 14. Bxd2 {[%emt 0:00:08] Really sharp!} Bxg7 {[%emt 0:01:05]} 15. Qxg7 {[%emt 0:00:32]} O-O-O {[%emt 0:00:18]} 16. Bd3 {[%emt 0:00:19]} f5 {[%emt 0:06:19]} 17. f3 {[%emt 0:06:34]} Rhg8 {[%emt 0:07:14]} 18. Qxh7 {[%emt 0:30:43]} Rh8 {[%emt 0:01:29]} 19. Qe7 {[%emt 0:03:02]} Rde8 {[%emt 0:16:09]} 20. Qb4 {[%emt 0:05:56]} Rxh2 {[%emt 0:01:39]} 21. Re1 {[%emt 0:11:49]} fxe4 {[%emt 0:00:41] An even fight not without its subleties.  Weighted Error Value: White=0.06 (flawless) /Black=0.03 (flawless)} 1/2-1/2

[Event "FRA-ch Teams Top 16-Haute 2022"]
[Site "Chartres"]
[Date "2022.06.19"]
[Round "11.25"]
[White "Vachier-Lagrave, Maxime"]
[Black "Fressinet, Laurent"]
[Result "1/2-1/2"]
[ECO "C65"]
[WhiteElo "2750"]
[BlackElo "2630"]
[Annotator "TA"]
[PlyCount "98"]
[EventDate "2022.06.16"]
[EventType "team-tourn"]
[EventCountry "FRA"]
[SourceTitle "playchess.com"]
[Source "ChessBase"]
[SourceQuality "1"]
[TimeControl "40/5400+30:1800+30"]

{[%evp 9,98,24,24,18,25,2,18,-26,-25,-15,-23,-22,-27,-12,-14,-36,-31,-41,-29,-60,-7,-14,-17,-14,0,0,0,0,3,0,1,2,13,13,9,5,6,14,23,15,24,0,0,0,10,3,28,19,20,19,20,26,18,0,0,-23,-17,-10,-17,-10,-9,-16,0,0,0,0,0,0,0,0,0,0,0,0,0,0,0,0,0,0,0,0,0,0,0,0,0,0,0,0,0]} 1. e4 {[%emt 0:00:05]} e5 {[%emt 0:01:39]} 2. Nf3 {[%emt 0:00:03]} Nc6 {[%emt 0:00:03]} 3. Bb5 {[%emt 0:00:02]} Nf6 {[%emt 0:00:06]} 4. d3 {[%emt 0:07:13]} Bc5 {[%emt 0:00:25]} 5. Bxc6 {[%emt 0:00:07]} dxc6 {[%emt 0:00:04]} 6. Nbd2 {[%emt 0:00:04] C65: Ruy Lopez: Berlin Defence (3...Nf6), unusual lines and 4 0-0 Bc5.} Be6 {[%emt 0:00:54]} 7. h3 {[%emt 0:04:36]} Nd7 {[%emt 0:07:25]} 8. Nf1 {[%emt 0:09:09]} f6 {[%emt 0:10:25]} 9. Be3 {[%emt 0:03:55] [#]} Bd6 $146 {[%emt 0:04:17]} ({Predecessor:} 9... Qe7 10. d4 exd4 11. Nxd4 O-O-O 12. Qe2 Bxd4 13. Bxd4 Ne5 14. O-O-O Bxa2 15. Ne3 Be6 {0-1 (30) Warakomska,A (2306)-Zimina,O (2414) Stary Smokovec 2018}) 10. Ng3 {[%emt 0:02:33]} g6 {[%emt 0:08:44]} 11. O-O {[%emt 0:01:20]} Qe7 {[%emt 0:04:51]} 12. c3 {[%emt 0:05:45]} h5 {[%emt 0:07:51][%cal Bh7h5,Bh5h4][%mdl 32]} 13. d4 {[%emt 0:01:46]} h4 {[%emt 0:06:48]} 14. Ne2 {[%emt 0:00:56]} Bc4 {[%emt 0:02:01]} (14... O-O-O $15) 15. Re1 $11 {[%emt 0:04:45]} O-O-O {[%emt 0:01:37]} 16. Qa4 {[%emt 0:10:19][%csl LRa7,LRc4]} Ba6 {[%emt 0:05:57]} 17. dxe5 {[%emt 0:01:01]} Nxe5 {[%emt 0:00:37]} 18. Nxe5 {[%emt 0:00:05]} Qxe5 {[%emt 0:04:41]} ({Much less strong is} 18... Bxe5 19. Nd4 $14) 19. Bf4 {[%emt 0:00:14] Inhibits Qh2+.} Qb5 {[%emt 0:05:19]} 20. Qxb5 {[%emt 0:00:19]} Bxb5 {[%emt 0:00:22]} 21. Bxd6 {[%emt 0:00:25]} cxd6 {[%emt 0:00:39]} 22. Nd4 {[%emt 0:00:33]} Bc4 {[%emt 0:02:20]} 23. b3 {[%emt 0:02:36]} Bf7 {[%emt 0:00:29]} 24. Re3 {[%emt 0:00:15]} c5 {[%emt 0:02:56]} 25. Nc2 {[%emt 0:07:32]} Be6 {[%emt 0:02:20]} 26. c4 {[%emt 0:02:15]} f5 {[%emt 0:01:37]} 27. Ne1 {[%emt 0:07:35]} Rh5 {[%emt 0:05:05]} 28. Rd1 {[%emt 0:02:27]} Kc7 {[%emt 0:02:13]} 29. Nd3 {[%emt 0:10:52]} g5 {[%emt 0:00:41] Prevents Nf4.} 30. exf5 {[%emt 0:01:03]} Bxf5 {[%emt 0:00:04]} 31. f3 {[%emt 0:00:05]} Rhh8 {[%emt 0:04:48]} 32. Kf2 {[%emt 0:03:41]} Rhe8 {[%emt 0:01:38]} 33. Rxe8 {[%emt 0:00:35] The position is equal.} Rxe8 {[%emt 0:00:01][%mdl 4096] Endgame KRB-KRN} 34. Nc1 {[%emt 0:00:16]} Re5 {[%emt 0:03:41][%cal Od6d5]} 35. Ne2 {[%emt 0:00:35]} Bd7 {[%emt 0:00:05]} 36. Nc3 {[%emt 0:04:18]} Bc6 {[%emt 0:00:06] Inhibits Ne4.} 37. Rd3 {[%emt 0:01:03]} Kd7 {[%emt 0:01:13]} 38. g4 {[%emt 0:01:43]} hxg3+ {[%emt 0:01:46]} 39. Kxg3 {[%emt 0:00:04]} Re1 {[%emt 0:00:07]} 40. h4 {[%emt 0:01:12]} gxh4+ {[%emt 0:00:30]} 41. Kxh4 {[%emt 0:30:04]} Ke6 {[%emt 0:33:47]} 42. Kg5 {[%emt 0:03:08]} a6 {[%emt 0:00:00]} 43. a4 {[%emt 0:00:00]} Rg1+ {[%emt 0:00:00]} 44. Kf4 {[%emt 0:00:00]} Re1 {[%emt 0:00:00]} 45. Rd2 {[%emt 0:00:00]} Re5 {[%emt 0:00:00] [#] Strongly threatening ...Rf5+.} 46. Rd3 {[%emt 0:00:00]} Re1 {[%emt 0:00:00]} 47. Re3+ {[%emt 0:00:00]} Rxe3 {[%emt 0:00:00]} 48. Kxe3 {[%emt 0:00:00]} b6 {[%emt 0:00:00]} 49. Ne4 {[%emt 0:00:00]} Ke5 {[%emt 0:04:48] Weighted Error Value: White=0.05 (flawless) /Black=0.05 (flawless)} 1/2-1/2